fUST/lending_fUST_20250615
["ID","MTS","AMOUNT","RATE_DAILY","PERIOD"]
[365901800,1749979625365,-500.0,0.00020164,2]
[365901801,1749979625388,-321.611764,0.00020187,2]
[365901802,1749979625410,-160.0,0.00020235,2]
[365901803,1749979625433,-997.31102342,0.00020244,2]
[365901804,1749979627076,-1483.83897658,0.00020244,2]
[365901805,1749979627097,-215.67818012,0.00020365,2]
[365901806,1749979627119,-798.05394621,0.0002046,2]
[365901807,1749979649126,-2449.57,0.00020171,2]
[365901808,1749979649150,-2059.46378779,0.00020255,2]
[365901809,1749979649173,-401.94605379,0.0002046,2]
[365901810,1749979649195,-300.0,0.0002046,2]
[365901811,1749979649216,-300.0,0.0002046,2]
[365901812,1749979649240,-11133.52927334,0.00020461,2]
[365901813,1749979671635,4854.46463826,0.00018,2]
[365901821,1749979707420,4208.47988319,0.00019,2]
[365901822,1749979707624,8485.25069552,0.00019,2]
[365901823,1749979711401,210.5827374,0.00019462,2]
[365901824,1749979716837,9394.17419208,0.00018,2]
[365901825,1749979716860,13907.52912105,0.00018,2]
[365901826,1749979717696,4182.47850395,0.0002,2]
[365901827,1749979717719,16497.17018333,0.0002,2]
[365901837,1749979803112,302.4999038,0.000192,2]
[365901841,1749979824687,642.66705028,0.000189,2]
[365901854,1749979832312,-2418.39,0.00020023,2]
[365901855,1749979832322,-222.04152509,0.00020144,2]
[365901857,1749979832331,-500.0,0.00020164,2]
[365901859,1749979832339,-195.76090948,0.0002036,2]
[365901861,1749979832348,-648.01561431,0.00020363,2]
[365901863,1749979832356,-500.0,0.00020458,2]
[365901864,1749979832365,-500.0,0.00020458,2]
[365901865,1749979832375,-500.0,0.00020458,2]
[365901866,1749979832384,-387.72520519,0.00020458,2]
[365901867,1749979832393,-500.0,0.00020458,2]
[365901868,1749979832402,-500.0,0.00020458,2]
[365901869,1749979832413,-500.0,0.00020458,2]
[365901870,1749979832423,-500.0,0.00020458,2]
[365901871,1749979832432,-531.90459842,0.00020458,2]
[365901872,1749979832444,-0.02053479,0.00020458,2]
[365901873,1749979832453,-433.6726969,0.00020458,2]
[365901874,1749979832476,-598.16471941,0.00020458,2]
[365901875,1749979832495,-168.16258369,0.00020458,2]
[365901876,1749979832504,-160.0,0.00020459,2]
[365901877,1749979832513,-12650.30487458,0.00020459,2]
[365901883,1749979832866,647.67048759,0.0001942,2]
[365901884,1749979832888,1465.39947121,0.0001942,2]
[365902249,1749979838463,-500.0,0.00020458,2]
[365902251,1749979838473,-30226.14788178,0.00020459,2]
[365902252,1749979838482,-300.0,0.00020459,2]
[365902253,1749979838494,-293.0,0.00020459,2]
[365902254,1749979838503,-300.0,0.00020459,2]
[365902255,1749979838513,-300.0,0.00020459,2]
[365902256,1749979838521,-685.91218583,0.00020461,2]
[365902257,1749979838531,-460.0,0.00020462,2]
[365902258,1749979838540,-1634.83,0.00020462,2]
[365902259,1749979838550,-460.0,0.00020462,2]
[365902260,1749979838560,-430.0,0.00020462,2]
[365902261,1749979838570,-460.0,0.00020462,2]
[365902262,1749979838579,-460.0,0.00020462,2]
[365902263,1749979838589,-460.0,0.00020462,2]
[365902264,1749979838599,-460.0,0.00020462,2]
[365902265,1749979838608,-460.0,0.00020462,2]
[365902266,1749979838618,-852.81,0.00020462,2]
[365902267,1749979838627,-460.0,0.00020462,2]
[365902268,1749979838637,-430.0,0.00020462,2]
[365902269,1749979838647,-918.13,0.00020462,2]
[365902270,1749979838657,-460.0,0.00020462,2]
[365902271,1749979838667,-676.32,0.00020462,2]
[365902272,1749979838677,-680.79,0.00020462,2]
[365902273,1749979838687,-440.0,0.00020463,2]
[365902274,1749979838697,-431.81720152,0.00020463,2]
[365902275,1749979838707,-430.0,0.00020463,2]
[365902276,1749979838717,-284.78389438,0.00020463,2]
[365902277,1749979838727,-440.0,0.00020463,2]
[365902278,1749979838737,-440.0,0.00020463,2]
[365902279,1749979838747,-512.98301656,0.00020463,2]
[365902280,1749979838756,-440.0,0.00020463,2]
[365902281,1749979838766,-460.0,0.00020464,2]
[365902282,1749979838776,-460.0,0.00020464,2]
[365902283,1749979838785,-440.0,0.00020464,2]
[365902284,1749979838795,-460.0,0.00020464,2]
[365902285,1749979838804,-1358.41,0.00020464,2]
[365902286,1749979838813,-1654.7,0.00020464,2]
[365902287,1749979838823,-460.0,0.00020464,2]
[365902288,1749979838832,-460.0,0.00020464,2]
[365902290,1749979838842,-467.01405512,0.00020464,2]
[365902292,1749979838852,-674.14,0.00020464,2]
[365902294,1749979838861,-440.0,0.00020464,2]
[365902296,1749979838870,-460.0,0.00020464,2]
[365902297,1749979838879,-460.0,0.00020464,2]
[365902299,1749979838888,-440.0,0.00020464,2]
[365902300,1749979838897,-440.0,0.00020464,2]
[365902301,1749979838907,-460.0,0.00020464,2]
[365902302,1749979838916,-460.0,0.00020464,2]
[365902303,1749979838926,-460.0,0.00020464,2]
[365902304,1749979838935,-460.0,0.00020464,2]
[365902305,1749979838945,-460.0,0.00020464,2]
[365902306,1749979838954,-460.0,0.00020464,2]
[365902307,1749979838964,-460.0,0.00020464,2]
[365902308,1749979838974,-1840.42,0.00020465,2]
[365902309,1749979838986,-460.0,0.00020465,2]
[365902310,1749979838996,-612.69,0.00020465,2]
[365902311,1749979839006,-465.21885176,0.00020465,2]
[365902312,1749979839015,-460.0,0.00020465,2]
[365902313,1749979839024,-468.07736519,0.00020465,2]
[365902314,1749979839034,-460.0,0.00020465,2]
[365902315,1749979839043,-440.0,0.00020465,2]
[365902316,1749979839053,-316.32705389,0.00020465,2]
[365902317,1749979839063,-440.0,0.00020465,2]
[365902318,1749979839072,-500.0,0.00020465,2]
[365902319,1749979839082,-440.0,0.00020465,2]
[365902320,1749979839096,-430.0,0.00020465,2]
[365902321,1749979839105,-430.0,0.00020465,2]
[365902322,1749979839116,-460.0,0.00020465,2]
[365902323,1749979839125,-440.0,0.00020465,2]
[365902324,1749979839135,-460.0,0.00020465,2]
[365902325,1749979839144,-708.28,0.00020465,2]
[365902326,1749979839154,-460.0,0.00020465,2]
[365902327,1749979839163,-460.0,0.00020465,2]
[365902328,1749979839173,-430.0,0.00020465,2]
[365902329,1749979839182,-440.0,0.00020465,2]
[365902330,1749979839192,-460.0,0.00020465,2]
[365902331,1749979839201,-440.0,0.00020465,2]
[365902332,1749979839210,-460.0,0.00020465,2]
[365902333,1749979839220,-440.0,0.00020465,2]
[365902334,1749979839229,-500.0,0.00020465,2]
[365902335,1749979839238,-440.0,0.00020465,2]
[365902336,1749979839247,-460.0,0.00020465,2]
[365902337,1749979839257,-460.0,0.00020465,2]
[365902338,1749979839266,-460.0,0.00020465,2]
[365902339,1749979839276,-526.9,0.00020465,2]
[365902340,1749979839286,-400.0,0.00020465,2]
[365902341,1749979839295,-460.0,0.00020465,2]
[365902342,1749979839305,-460.0,0.00020465,2]
[365902343,1749979839314,-440.0,0.00020465,2]
[365902344,1749979839324,-460.0,0.00020465,2]
[365902345,1749979839333,-430.0,0.00020465,2]
[365902346,1749979839343,-440.00000002,0.00020465,2]
[365902347,1749979839353,-460.0,0.00020465,2]
[365902348,1749979839363,-430.0,0.00020465,2]
[365902349,1749979839373,-440.0,0.00020465,2]
[365902350,1749979839383,-460.0,0.00020465,2]
[365902351,1749979839392,-440.0,0.00020465,2]
[365902352,1749979839401,-513.23098265,0.00020465,2]
[365902353,1749979839411,-460.0,0.00020465,2]
[365902354,1749979839421,-440.0,0.00020465,2]
[365902355,1749979839432,-440.0,0.00020465,2]
[365902356,1749979839442,-460.0,0.00020465,2]
[365902357,1749979839452,-440.0,0.00020465,2]
[365902358,1749979839461,-460.0,0.00020465,2]
[365902359,1749979839472,-440.0,0.00020465,2]
[365902360,1749979839481,-432.79574424,0.00020465,2]
[365902361,1749979839491,-460.0,0.00020465,2]
[365902362,1749979839500,-440.0,0.00020465,2]
[365902363,1749979839509,-460.0,0.00020465,2]
[365902364,1749979839519,-435.59176882,0.00020465,2]
[365902365,1749979839528,-460.0,0.00020465,2]
[365902366,1749979839538,-430.0,0.00020465,2]
[365902367,1749979839547,-573.66782447,0.00020465,2]
[365902368,1749979839557,-460.0,0.00020465,2]
[365902369,1749979839566,-440.0,0.00020465,2]
[365902370,1749979839575,-430.0,0.00020465,2]
[365902371,1749979839585,-460.0,0.00020465,2]
[365902372,1749979839596,-440.0,0.00020465,2]
[365902373,1749979839605,-460.0,0.00020465,2]
[365902374,1749979839615,-432.48253835,0.00020465,2]
[365902375,1749979839625,-460.0,0.00020465,2]
[365902376,1749979839634,-430.0,0.00020465,2]
[365902377,1749979839644,-440.0,0.00020465,2]
[365902378,1749979839653,-440.0,0.00020465,2]
[365902379,1749979839663,-460.0,0.00020465,2]
[365902380,1749979839671,-438.07816898,0.00020465,2]
[365902381,1749979839681,-493.83,0.00020465,2]
[365902382,1749979839691,-460.0,0.00020467,2]
[365902383,1749979839700,-460.0,0.00020467,2]
[365902384,1749979839711,-434.06494317,0.00020467,2]
[365902385,1749979839721,-268.07947492,0.00020467,2]
[365902386,1749979839731,-440.0,0.00020467,2]
[365902387,1749979839740,-299.70809379,0.00020467,2]
[365902388,1749979839750,-431.66729141,0.00020467,2]
[365902389,1749979839759,-440.0,0.00020467,2]
[365902390,1749979839768,-430.0,0.00020467,2]
[365902391,1749979839778,-460.0,0.00020467,2]
[365902392,1749979839787,-440.0,0.00020467,2]
[365902393,1749979839797,-431.70411064,0.00020467,2]
[365902394,1749979839806,-432.96293593,0.00020467,2]
[365902396,1749979839815,-440.0,0.00020467,2]
[365902398,1749979839826,-430.0,0.00020467,2]
[365902400,1749979839835,-440.0,0.00020467,2]
[365902401,1749979839845,-432.20158728,0.00020467,2]
[365902402,1749979839855,-430.0,0.00020467,2]
[365902403,1749979839864,-440.0,0.00020467,2]
[365902404,1749979839875,-430.0,0.00020467,2]
[365902405,1749979839886,-440.0,0.00020467,2]
[365902406,1749979839896,-430.0,0.00020467,2]
[365902407,1749979839906,-440.0,0.00020467,2]
[365902408,1749979839915,-433.9319657,0.00020467,2]
[365902409,1749979839925,-370.0,0.00020467,2]
[365902410,1749979839934,-440.0,0.00020467,2]
[365902411,1749979839944,-440.0,0.00020467,2]
[365902412,1749979839955,-440.0,0.00020467,2]
[365902413,1749979839966,-332.41062033,0.00020467,2]
[365902414,1749979839976,-440.0,0.00020467,2]
[365902415,1749979839986,-440.0,0.00020467,2]
[365902416,1749979839996,-430.0,0.00020467,2]
[365902417,1749979840006,-440.0,0.00020467,2]
[365902418,1749979840015,-440.0,0.00020467,2]
[365902419,1749979840024,-440.0,0.00020467,2]
[365902420,1749979840033,-441.86730952,0.00020467,2]
[365902421,1749979840042,-440.0,0.00020467,2]
[365902422,1749979840052,-364.78863411,0.00020467,2]
[365902423,1749979840062,-430.0,0.00020467,2]
[365902424,1749979840071,-404.08169942,0.00020467,2]
[365902426,1749979840080,-430.0,0.00020467,2]
[365902428,1749979840094,-440.0,0.00020467,2]
[365902430,1749979840103,-371.38536333,0.00020467,2]
[365902432,1749979840112,-440.0,0.00020467,2]
[365902434,1749979840122,-550.98118995,0.00020467,2]
[365902436,1749979840132,-323.49565794,0.00020467,2]
[365902438,1749979840141,-431.14172654,0.00020467,2]
[365902440,1749979840150,-440.0,0.00020467,2]
[365902442,1749979840160,-302.13937357,0.00020467,2]
[365902444,1749979840169,-440.0,0.00020467,2]
[365902446,1749979840180,-440.0,0.00020467,2]
[365902448,1749979840189,-440.0,0.00020467,2]
[365902450,1749979840198,-431.37450894,0.00020467,2]
[365902452,1749979840208,-462.29024956,0.00020467,2]
[365902454,1749979840217,-461.3367202,0.00020467,2]
[365902457,1749979840227,-432.9234148,0.00020467,2]
[365902459,1749979840236,-430.0,0.00020467,2]
[365902461,1749979840245,-307.91795095,0.00020467,2]
[365902463,1749979840254,-460.0,0.00020467,2]
[365902465,1749979840263,-280.03668619,0.00020467,2]
[365902467,1749979840273,-474.39542613,0.00020467,2]
[365902469,1749979840282,-430.0,0.00020467,2]
[365902471,1749979840292,-430.0,0.00020467,2]
[365902473,1749979840301,-430.0,0.00020467,2]
[365902475,1749979840311,-193.18653969,0.00020467,2]
[365902477,1749979840320,-500.0,0.00020467,2]
[365902479,1749979840330,-243.81934067,0.00020467,2]
[365902481,1749979840340,-440.0,0.00020467,2]
[365902483,1749979840349,-460.0,0.00020467,2]
[365902485,1749979840359,-440.0,0.00020467,2]
[365902487,1749979840370,-460.0,0.00020467,2]
[365902488,1749979840382,-274.86729303,0.00020467,2]
[365902491,1749979840391,-433.09303096,0.00020467,2]
[365902492,1749979840400,-1502.33,0.00020467,2]
[365902495,1749979840410,-460.0,0.00020467,2]
[365902497,1749979840420,-460.0,0.00020467,2]
[365902499,1749979840429,-419.84969821,0.00020467,2]
[365902501,1749979840438,-460.0,0.00020467,2]
[365902503,1749979840448,-460.0,0.00020467,2]
[365902505,1749979840457,-410.60341419,0.00020467,2]
[365902507,1749979840467,-234.83522931,0.00020467,2]
[365902509,1749979840476,-460.0,0.00020467,2]
[365902511,1749979840485,-460.0,0.00020467,2]
[365902513,1749979840495,-460.0,0.00020467,2]
[365902515,1749979840504,-460.0,0.00020467,2]
[365902517,1749979840513,-430.0,0.00020467,2]
[365902519,1749979840522,-501.83826315,0.00020467,2]
[365902521,1749979840531,-460.0,0.00020467,2]
[365902523,1749979840540,-440.0,0.00020467,2]
[365902525,1749979840550,-937.65,0.00020467,2]
[365902527,1749979840559,-460.0,0.00020467,2]
[365902529,1749979840568,-460.0,0.00020467,2]
[365902531,1749979840577,-420.0,0.00020467,2]
[365902533,1749979840587,-432.19609612,0.00020467,2]
[365902535,1749979840596,-216.6354311,0.00020467,2]
[365902537,1749979840606,-709.91,0.00020467,2]
[365902539,1749979840616,-403.16952501,0.00020467,2]
[365902541,1749979840625,-460.0,0.00020467,2]
[365902543,1749979840635,-460.0,0.00020467,2]
[365902545,1749979840645,-420.0,0.00020467,2]
[365902547,1749979840654,-460.0,0.00020467,2]
[365902549,1749979840663,-430.0,0.00020467,2]
[365902551,1749979840672,-330.0,0.00020467,2]
[365902553,1749979840681,-373.81917598,0.00020467,2]
[365902555,1749979840691,-430.0,0.00020467,2]
[365902557,1749979840700,-430.0,0.00020467,2]
[365902559,1749979840709,-460.0,0.00020467,2]
[365902561,1749979840718,-440.0,0.00020467,2]
[365902563,1749979840727,-442.10441377,0.00020467,2]
[365902565,1749979840737,-500.0,0.00020467,2]
[365902567,1749979840747,-473.17,0.00020467,2]
[365902569,1749979840756,-460.0,0.00020467,2]
[365902571,1749979840765,-430.0,0.00020467,2]
[365902573,1749979840775,-460.0,0.00020467,2]
[365902575,1749979840784,-916.98,0.00020467,2]
[365902577,1749979840793,-430.0,0.00020467,2]
[365902579,1749979840803,-410.0,0.00020467,2]
[365902582,1749979840812,-460.0,0.00020467,2]
[365902583,1749979840821,-460.0,0.00020467,2]
[365902585,1749979840830,-460.0,0.00020467,2]
[365902587,1749979840840,-400.0,0.00020467,2]
[365902589,1749979840849,-430.0,0.00020467,2]
[365902591,1749979840859,-433.63810793,0.00020467,2]
[365902593,1749979840868,-460.0,0.00020467,2]
[365902595,1749979840877,-1340.42,0.00020467,2]
[365902597,1749979840886,-430.0,0.00020467,2]
[365902599,1749979840896,-430.0,0.00020467,2]
[365902601,1749979840905,-440.0,0.00020467,2]
[365902603,1749979840914,-460.0,0.00020467,2]
[365902605,1749979840924,-460.0,0.00020468,2]
[365902607,1749979840933,-276.88396549,0.00020468,2]
[365902610,1749979840943,-500.0,0.00020468,2]
[365902611,1749979840952,-460.0,0.00020468,2]
[365902613,1749979840961,-460.0,0.00020468,2]
[365902616,1749979840971,-460.0,0.00020468,2]
[365902618,1749979840980,-460.0,0.00020468,2]
[365902620,1749979840989,-460.0,0.00020468,2]
[365902622,1749979840999,-420.0,0.00020468,2]
[365902624,1749979841009,-460.0,0.00020468,2]
[365902626,1749979841018,-460.0,0.00020468,2]
[365902628,1749979841028,-482.88,0.00020468,2]
[365902630,1749979841039,-460.0,0.00020468,2]
[365902632,1749979841048,-468.86193268,0.00020468,2]
[365902634,1749979841058,-430.0,0.00020468,2]
[365902636,1749979841067,-440.0,0.00020468,2]
[365902638,1749979841077,-460.0,0.00020468,2]
[365902640,1749979841086,-460.0,0.00020468,2]
[365902642,1749979841096,-440.0,0.00020468,2]
[365902644,1749979841111,-440.0,0.00020468,2]
[365902646,1749979841121,-460.0,0.00020468,2]
[365902648,1749979841130,-460.0,0.00020468,2]
[365902650,1749979841139,-460.0,0.00020468,2]
[365902652,1749979841149,-460.0,0.00020468,2]
[365902654,1749979841159,-436.48722184,0.00020468,2]
[365902656,1749979841168,-460.0,0.00020468,2]
[365902658,1749979841178,-460.0,0.00020468,2]
[365902660,1749979841188,-522.48,0.00020469,2]
[365902662,1749979841198,-156.72713415,0.00020473,2]
[365902664,1749979841207,-501.12400005,0.00020473,2]
[365902666,1749979841217,-500.0,0.00020473,2]
[365902668,1749979841226,-500.0,0.00020473,2]
[365902670,1749979841235,-509.04374065,0.00020473,2]
[365902672,1749979841245,-283.90234346,0.00020473,2]
[365902674,1749979841254,-500.0,0.00020473,2]
[365902676,1749979841265,-500.0,0.00020473,2]
[365902678,1749979841274,-500.0,0.00020473,2]
[365902680,1749979841283,-295.26106481,0.00020474,2]
[365902682,1749979841293,-1306.58839249,0.00020474,2]
[365902685,1749979841303,-430.0,0.00020486,2]
[365902686,1749979841312,-562.49224081,0.00020486,2]
[365902688,1749979841321,-460.0,0.00020486,2]
[365902690,1749979841330,-430.0,0.00020486,2]
[365902693,1749979841340,-460.0,0.00020486,2]
[365902695,1749979841350,-440.0,0.00020486,2]
[365902697,1749979841359,-440.0,0.00020486,2]
[365902699,1749979841368,-210.04088016,0.00020486,2]
[365902701,1749979841378,-460.0,0.00020486,2]
[365902703,1749979841387,-460.26921726,0.00020486,2]
[365902705,1749979841397,-440.0,0.00020486,2]
[365902707,1749979841406,-430.0,0.00020486,2]
[365902709,1749979841416,-1000.0,0.00020486,2]
[365902711,1749979841424,-430.0,0.00020486,2]
[365902713,1749979841434,-440.0,0.00020486,2]
[365902715,1749979841443,-430.0,0.00020486,2]
[365902717,1749979841452,-500.0,0.00020486,2]
[365902719,1749979841461,-460.37895833,0.00020486,2]
[365902721,1749979841470,-430.0,0.00020486,2]
[365902723,1749979841479,-460.0,0.00020486,2]
[365902725,1749979841489,-440.0,0.00020486,2]
[365902727,1749979841498,-440.0,0.00020486,2]
[365902729,1749979841507,-430.0,0.00020486,2]
[365902746,1749979841655,-420.0,0.00020486,2]
[365902748,1749979841665,-460.0,0.00020486,2]
[365902750,1749979841675,-440.0,0.00020486,2]
[365902752,1749979841684,-430.0,0.00020486,2]
[365902754,1749979841693,-420.0,0.00020486,2]
[365902756,1749979841703,-427.41408605,0.00020486,2]
[365902758,1749979841712,-430.0,0.00020486,2]
[365902760,1749979841722,-460.0,0.00020486,2]
[365902762,1749979841731,-460.0,0.00020486,2]
[365902764,1749979841739,-440.0,0.00020486,2]
[365902766,1749979841748,-440.0,0.00020486,2]
[365902768,1749979841758,-440.0,0.00020486,2]
[365902770,1749979841767,-460.0,0.00020486,2]
[365902772,1749979841776,-284.47836569,0.00020496,2]
[365902774,1749979841785,-466.979,0.00020528,2]
[365902776,1749979841794,-268.9929737,0.00020642,2]
[365902778,1749979841803,-500.0,0.00020674,2]
[365902780,1749979841812,-500.0,0.00020674,2]
[365902782,1749979841822,-208.23,0.00020729,3]
[365902784,1749979841831,-624.7,0.00020729,3]
[365902786,1749979841840,-1634.83,0.00020736,2]
[365902788,1749979841849,-460.0,0.00020736,2]
[365902790,1749979841858,-460.0,0.00020736,2]
[365902792,1749979841867,-460.0,0.00020736,2]
[365902794,1749979841876,-460.0,0.00020736,2]
[365902796,1749979841886,-852.81,0.00020736,2]
[365902798,1749979841895,-400.0,0.00020736,2]
[365902800,1749979841910,-918.13,0.00020736,2]
[365902802,1749979841919,-460.0,0.00020736,2]
[365902804,1749979841928,-676.32,0.00020736,2]
[365902806,1749979841938,-680.79,0.00020736,2]
[365902808,1749979841947,-559.51918494,0.00020738,2]
[365902810,1749979841957,-460.0,0.00020738,2]
[365902813,1749979841966,-460.0,0.00020738,2]
[365902815,1749979841975,-1358.41,0.00020738,2]
[365902817,1749979841985,-1654.7,0.00020738,2]
[365902819,1749979841995,-460.0,0.00020738,2]
[365902821,1749979842004,-674.14,0.00020738,2]
[365902823,1749979842013,-460.0,0.00020738,2]
[365902825,1749979842022,-460.0,0.00020738,2]
[365902827,1749979842031,-460.0,0.00020738,2]
[365902829,1749979842040,-460.0,0.00020738,2]
[365902831,1749979842049,-460.0,0.00020738,2]
[365902833,1749979842058,-460.0,0.00020738,2]
[365902835,1749979842066,-460.0,0.00020738,2]
[365902836,1749979842075,-502.38,0.00020738,2]
[365902839,1749979842084,-1840.42,0.00020739,2]
[365902841,1749979842094,-300.0,0.00020739,2]
[365902843,1749979842106,-580.0,0.00020739,2]
[365902844,1749979842114,-440.0,0.00020739,2]
[365902846,1749979842123,-420.0,0.00020739,2]
[365902849,1749979842132,-440.0,0.00020739,2]
[365902851,1749979842143,-708.28,0.00020739,2]
[365902853,1749979842152,-380.0,0.00020739,2]
[365902855,1749979842161,-420.0,0.00020739,2]
[365902856,1749979842170,-440.0,0.00020739,2]
[365902859,1749979842180,-460.0,0.00020739,2]
[365902861,1749979842189,-420.0,0.00020739,2]
[365902863,1749979842198,-420.0,0.00020739,2]
[365902865,1749979842207,-460.0,0.00020739,2]
[365902867,1749979842217,-460.0,0.00020739,2]
[365902869,1749979842226,-460.0,0.00020739,2]
[365902871,1749979842234,-320.0,0.00020739,2]
[365902873,1749979842243,-460.0,0.00020739,2]
[365902875,1749979842252,-460.0,0.00020739,2]
[365902877,1749979842261,-460.0,0.00020739,2]
[365902879,1749979842271,-460.0,0.00020739,2]
[365902881,1749979842279,-440.0,0.00020739,2]
[365902883,1749979842288,-460.0,0.00020739,2]
[365902885,1749979842297,-460.0,0.00020739,2]
[365902887,1749979842306,-460.0,0.00020739,2]
[365902889,1749979842316,-460.0,0.00020739,2]
[365902890,1749979842325,-460.0,0.00020739,2]
[365902893,1749979842334,-493.83,0.00020739,2]
[365902895,1749979842344,-322.20250663,0.00020741,2]
[365902897,1749979842353,-440.0,0.00020741,2]
[365902899,1749979842362,-460.0,0.00020741,2]
[365902901,1749979842372,-460.0,0.00020741,2]
[365902902,1749979842381,-460.0,0.00020741,2]
[365902905,1749979842391,-1502.33,0.00020741,2]
[365902907,1749979842400,-460.0,0.00020741,2]
[365902909,1749979842409,-440.0,0.00020741,2]
[365902911,1749979842418,-476.80991778,0.00020741,2]
[365902912,1749979842427,-460.0,0.00020741,2]
[365902915,1749979842437,-460.0,0.00020741,2]
[365902916,1749979842446,-437.09428049,0.00020741,2]
[365902919,1749979842456,-370.0,0.00020741,2]
[365902920,1749979842465,-440.0,0.00020741,2]
[365902922,1749979842474,-937.65,0.00020741,2]
[365902924,1749979842484,-440.0,0.00020741,2]
[365902926,1749979842494,-403.86328583,0.00020741,2]
[365902928,1749979842503,-709.91,0.00020741,2]
[365902930,1749979842512,-300.91412148,0.00020741,2]
[365902933,1749979842522,-460.0,0.00020741,2]
[365902935,1749979842531,-410.0,0.00020741,2]
[365902937,1749979842540,-916.98,0.00020741,2]
[365902939,1749979842550,-460.0,0.00020741,2]
[365902941,1749979842559,-460.0,0.00020741,2]
[365902943,1749979842568,-1340.42,0.00020741,2]
[365902945,1749979842578,-460.0,0.00020742,2]
[365902947,1749979842587,-460.0,0.00020742,2]
[365902949,1749979842596,-460.0,0.00020742,2]
[365902951,1749979842606,-460.0,0.00020742,2]
[365902953,1749979842615,-460.0,0.00020742,2]
[365902955,1749979842624,-482.88,0.00020742,2]
[365902957,1749979842634,-460.0,0.00020742,2]
[365902959,1749979842643,-1627.02,0.00020742,2]
[365902961,1749979842652,-460.0,0.00020742,2]
[365902963,1749979842662,-765.73,0.00020742,2]
[365902965,1749979842672,-460.0,0.00020742,2]
[365902967,1749979842681,-460.0,0.0002076,2]
[365902969,1749979842690,-251.36504178,0.0002076,2]
[365902971,1749979842699,-534.22081151,0.0002076,2]
[365902973,1749979842708,-438.51435917,0.0002076,2]
[365902975,1749979842717,-348.20452939,0.0002076,2]
[365902977,1749979842726,-440.0,0.0002076,2]
[365902979,1749979842735,-460.0,0.0002076,2]
[365902981,1749979842744,-160.0,0.00020763,2]
[365902983,1749979842754,-771.63379726,0.000209,4]
[365902985,1749979842764,-286.80505592,0.00020965,2]
[365902987,1749979842773,-4836.78,0.00020977,2]
[365902989,1749979842782,-1634.83,0.0002101,2]
[365902991,1749979842791,-460.0,0.0002101,2]
[365902993,1749979842800,-460.0,0.0002101,2]
[365902995,1749979842809,-852.81,0.0002101,2]
[365902997,1749979842818,-918.13,0.0002101,2]
[365902999,1749979842827,-460.0,0.0002101,2]
[365903001,1749979842836,-676.32,0.0002101,2]
[365903003,1749979842845,-680.79,0.0002101,2]
[365903005,1749979842853,-456.12189427,0.00021012,2]
[365903007,1749979842862,-1358.41,0.00021012,2]
[365903009,1749979842871,-1654.7,0.00021012,2]
[365903011,1749979842880,-674.14,0.00021012,2]
[365903013,1749979842889,-460.0,0.00021012,2]
[365903015,1749979842898,-460.0,0.00021012,2]
[365903017,1749979842907,-460.0,0.00021012,2]
[365903019,1749979842916,-460.0,0.00021012,2]